lending/lending_fUSD_20250917
["ID","MTS","AMOUNT","RATE_DAILY","PERIOD"]
[385934422,1758137461763,-400.0,0.00022738,2]
[385934423,1758137461776,-400.0,0.00022738,2]
[385934424,1758137461786,-400.0,0.00022738,2]
[385934425,1758137461795,-400.0,0.00022739,2]
[385934426,1758137461805,-400.0,0.00022739,2]
[385934427,1758137461815,-400.0,0.00022739,2]
[385934428,1758137461828,-602.7,0.00022739,2]
[385934429,1758137461837,-400.0,0.00022739,2]
[385934430,1758137461847,-435.38,0.00022739,2]
[385934431,1758137461857,-400.0,0.00022739,2]
[385934432,1758137461866,-400.0,0.00022739,2]
[385934433,1758137461876,-400.0,0.00022739,2]
[385934434,1758137461886,-400.0,0.00022739,2]
[385934435,1758137461897,-400.0,0.00022739,2]
[385934436,1758137461908,-400.0,0.00022739,2]
[385934437,1758137461918,-400.0,0.00022739,2]
[385934438,1758137461928,-3002.02,0.00022739,2]
[385934439,1758137461939,-400.0,0.00022739,2]
[385934440,1758137461948,-400.0,0.00022739,2]
[385934441,1758137461958,-400.0,0.00022739,2]
[385934442,1758137461967,-400.0,0.00022739,2]
[385934443,1758137461977,-400.0,0.00022739,2]
[385934444,1758137461987,-400.0,0.00022739,2]
[385934445,1758137461997,-400.0,0.00022739,2]
[385934446,1758137462008,-400.0,0.00022739,2]
[385934447,1758137462017,-400.0,0.00022739,2]
[385934448,1758137462026,-400.0,0.00022739,2]
[385934449,1758137462035,-400.0,0.00022739,2]
[385934450,1758137462045,-400.0,0.00022739,2]
[385934451,1758137462055,-400.0,0.00022739,2]
[385934452,1758137462064,-400.0,0.00022739,2]
[385934453,1758137462074,-450.53,0.00022739,2]
[385934454,1758137462084,-400.0,0.00022739,2]
[385934455,1758137462093,-400.0,0.00022739,2]
[385934456,1758137462102,-400.0,0.00022739,2]
[385934457,1758137462112,-400.0,0.00022739,2]
[385934458,1758137462121,-400.0,0.00022739,2]
[385934459,1758137462131,-170.63473659,0.00022739,2]
[385934460,1758137462140,-400.0,0.00022739,2]
[385934461,1758137462150,-403.85,0.00022739,2]
[385934462,1758137462159,-531.56,0.00022739,2]
[385934463,1758137462169,-747.86,0.00022739,2]
[385934464,1758137462179,-151.0,0.00022739,7]
[385934465,1758137462190,-167.858488,0.00022739,7]
[385934466,1758137462200,-671.74,0.00022739,2]
[385934467,1758137462209,-400.0,0.00022739,2]
[385934468,1758137462220,-400.0,0.00022739,2]
[385934469,1758137462229,-400.0,0.00022739,2]
[385934470,1758137462238,-400.0,0.00022739,2]
[385934471,1758137462247,-400.0,0.00022739,2]
[385934472,1758137462257,-3263.67,0.00022739,2]
[385934473,1758137462267,-400.0,0.00022739,2]
[385934474,1758137462276,-493.88,0.00022739,2]
[385934475,1758137462285,-568.43,0.00022739,2]
[385934476,1758137462294,-400.0,0.00022739,2]
[385934477,1758137462304,-400.0,0.00022739,2]
[385934478,1758137462313,-454.87,0.00022739,2]
[385934479,1758137462322,-400.0,0.00022739,2]
[385934480,1758137462331,-427.05,0.00022739,2]
[385934481,1758137462341,-400.0,0.00022739,2]
[385934482,1758137462350,-400.0,0.00022739,2]
[385934483,1758137462359,-688.11,0.00022739,2]
[385934484,1758137462368,-461.23,0.00022739,2]
[385934485,1758137462377,-400.0,0.00022739,2]
[385934486,1758137462386,-445.65,0.00022739,2]
[385934487,1758137462396,-569.96,0.00022739,2]
[385934488,1758137462405,-441.98,0.00022739,2]
[385934489,1758137462415,-400.0,0.00022739,2]
[385934490,1758137462425,-454.48,0.00022739,2]
[385934491,1758137462438,-463.35,0.00022739,2]
[385934492,1758137462447,-400.0,0.00022739,2]
[385934493,1758137462457,-400.0,0.00022739,2]
[385934494,1758137462466,-197.36878107,0.00022739,2]
[385934495,1758137462476,-400.68749027,0.00022739,2]
[385934496,1758137462486,-492.3,0.00022739,2]
[385934497,1758137462498,-677.36,0.00022739,2]
[385934498,1758137462507,-400.0,0.00022739,2]
[385934499,1758137462517,-400.0,0.00022739,2]
[385934500,1758137462532,-413.4,0.00022739,2]
[385934501,1758137462541,-400.0,0.00022739,2]
[385934502,1758137462551,-796.26,0.00022739,2]
[385934503,1758137462566,-400.0,0.00022739,2]
[385934504,1758137462575,-400.0,0.00022739,2]
[385934505,1758137462587,-2727.12,0.00022739,2]
[385934506,1758137462597,-400.0,0.00022739,2]
[385934507,1758137462607,-518.36,0.00022739,2]
[385934508,1758137462616,-400.0,0.00022739,2]
[385934509,1758137462626,-469.33,0.00022739,2]
[385934510,1758137462635,-400.0,0.00022739,2]
[385934511,1758137462644,-400.0,0.00022739,2]
[385934512,1758137462654,-400.0,0.00022739,2]
[385934513,1758137462663,-400.0,0.00022739,2]
[385934514,1758137462672,-400.0,0.00022739,2]
[385934515,1758137462907,-400.0,0.00022739,2]
[385934516,1758137462965,-400.0,0.00022739,2]
[385934517,1758137462975,-586.66,0.00022739,2]
[385934518,1758137462984,-430.47,0.00022739,2]
[385934519,1758137462995,-400.0,0.00022739,2]
[385934520,1758137463004,-400.0,0.00022739,2]
[385934521,1758137463014,-500.0,0.00022773,2]
[385934522,1758137463023,-500.0,0.00022773,2]
[385934523,1758137463033,-1700.0,0.000228,8]
[385934524,1758137463042,-400.0,0.0002282,2]
[385934525,1758137463052,-400.0,0.0002282,2]
[385934526,1758137463062,-400.0,0.0002282,2]
[385934527,1758137463072,-400.0,0.0002282,2]
[385934528,1758137463081,-400.0,0.0002282,2]
[385934529,1758137463091,-575.48,0.0002282,2]
[385934530,1758137463101,-400.0,0.0002282,2]
[385934531,1758137463110,-400.0,0.0002282,2]
[385934532,1758137463120,-765.76,0.0002282,2]
[385934533,1758137463129,-400.0,0.0002282,2]
[385934534,1758137463139,-400.0,0.0002282,2]
[385934535,1758137463149,-400.0,0.0002282,2]
[385934536,1758137463160,-400.0,0.0002282,2]
[385934537,1758137463169,-177.139291,0.0002282,2]
[385934538,1758137463179,-244.040939,0.0002282,2]
[385934539,1758137463191,-386.251879,0.0002282,2]
[385934540,1758137463201,-1073.87,0.0002282,2]
[385934541,1758137463210,-400.0,0.0002282,2]
[385934542,1758137463219,-535.0,0.0002282,2]
[385934543,1758137463229,-459.71,0.0002282,2]
[385934544,1758137463239,-400.0,0.0002282,2]
[385934545,1758137463248,-400.0,0.0002282,2]
[385934546,1758137463258,-400.0,0.0002282,2]
[385934547,1758137463268,-400.0,0.0002282,2]
[385934548,1758137463278,-542.92,0.0002282,2]
[385934549,1758137463288,-400.0,0.0002282,2]
[385934550,1758137463298,-538.28,0.0002282,2]
[385934551,1758137463307,-400.0,0.0002282,2]
[385934552,1758137463317,-400.0,0.0002282,2]
[385934553,1758137463327,-476.01,0.0002282,2]
[385934554,1758137463337,-400.0,0.0002282,2]
[385934555,1758137463347,-1008.77,0.0002282,2]
[385934556,1758137463356,-400.0,0.0002282,2]
[385934557,1758137463366,-763.58,0.0002282,2]
[385934558,1758137463376,-400.0,0.0002282,2]
[385934559,1758137463386,-400.0,0.0002282,2]
[385934560,1758137463395,-400.0,0.0002282,2]
[385934561,1758137463405,-400.0,0.0002282,2]
[385934562,1758137463415,-1279.58,0.0002282,2]
[385934563,1758137463425,-449.94,0.0002282,2]
[385934564,1758137463434,-435.9,0.0002282,2]
[385934565,1758137463448,-400.0,0.0002282,2]
[385934566,1758137463459,-400.0,0.0002282,2]
[385934567,1758137463468,-505.47,0.0002282,2]
[385934568,1758137463478,-551.94,0.0002282,2]
[385934569,1758137463488,-400.0,0.0002282,2]
[385934570,1758137463499,-400.0,0.0002282,2]
[385934571,1758137463508,-400.0,0.0002282,2]
[385934572,1758137463518,-400.0,0.0002282,2]
[385934573,1758137463528,-400.0,0.0002282,2]
[385934574,1758137463537,-542.84,0.0002282,2]
[385934575,1758137463547,-400.0,0.0002282,2]
[385934576,1758137463557,-565.74,0.0002282,2]
[385934577,1758137463567,-400.0,0.0002282,2]
[385934578,1758137463576,-400.0,0.0002282,2]
[385934579,1758137463585,-461.5,0.0002282,2]
[385934580,1758137463595,-400.0,0.0002282,2]
[385934581,1758137463605,-400.0,0.0002282,2]
[385934582,1758137463615,-728.72,0.0002282,2]
[385934583,1758137463625,-1073.76,0.0002282,2]
[385934584,1758137463634,-400.0,0.0002282,2]
[385934585,1758137463644,-400.0,0.0002282,2]
[385934586,1758137463654,-400.0,0.0002282,2]
[385934587,1758137463663,-400.0,0.0002282,2]
[385934588,1758137463672,-455.35,0.0002282,2]
[385934589,1758137463682,-400.0,0.0002282,2]
[385934590,1758137463695,-1019.68,0.0002282,2]
[385934591,1758137463705,-511.63,0.0002282,2]
[385934592,1758137463715,-972.93,0.0002282,2]
[385934593,1758137463726,-400.0,0.0002282,2]
[385934594,1758137463736,-1906.2,0.0002282,2]
[385934595,1758137463746,-400.0,0.0002282,2]
[385934596,1758137463755,-400.0,0.0002282,2]
[385934597,1758137463765,-400.0,0.0002282,2]
[385934598,1758137463775,-7460.96,0.0002282,2]
[385934599,1758137463786,-400.0,0.0002282,2]
[385934600,1758137463795,-400.0,0.0002282,2]
[385934601,1758137463805,-400.0,0.0002282,2]
[385934602,1758137463816,-3359.33,0.0002282,2]
[385934603,1758137463828,-400.0,0.0002282,2]
[385934604,1758137463838,-485.76,0.0002282,2]
[385934605,1758137463847,-400.0,0.00022821,2]
[385934606,1758137463857,-400.0,0.00022821,2]
[385934607,1758137463867,-400.0,0.00022821,2]
[385934608,1758137463876,-400.0,0.00022821,2]
[385934609,1758137463886,-497.97774962,0.00022821,2]
[385934610,1758137463897,-499.98,0.00022821,2]
[385934611,1758137463907,-409.22211384,0.00022821,2]
[385934612,1758137463916,-554.96,0.00022821,2]
[385934613,1758137463926,-400.0,0.00022821,2]
[385934614,1758137463938,-400.0,0.00022821,2]
[385934615,1758137463948,-400.0,0.00022821,2]
[385934616,1758137463958,-400.0,0.00022821,2]
[385934617,1758137463968,-400.0,0.00022821,2]
[385934618,1758137463978,-400.0,0.00022821,2]
[385934619,1758137463988,-400.0,0.00022821,2]
[385934620,1758137463997,-400.0,0.00022821,2]
[385934621,1758137464007,-400.0,0.00022821,2]
[385934622,1758137464017,-400.0,0.00022821,2]
[385934623,1758137464027,-400.0,0.00022821,2]
[385934624,1758137464037,-400.0,0.00022821,2]
[385934625,1758137464048,-400.0,0.00022821,2]
[385934626,1758137464058,-400.0,0.00022821,2]
[385934627,1758137464068,-400.0,0.00022821,2]
[385934628,1758137464078,-400.0,0.00022821,2]
[385934629,1758137464087,-400.0,0.00022821,2]
[385934630,1758137464097,-400.0,0.00022821,2]
[385934631,1758137464107,-400.0,0.00022821,2]
[385934632,1758137464117,-400.0,0.00022821,2]
[385934633,1758137464127,-400.0,0.00022821,2]
[385934634,1758137464136,-400.0,0.00022821,2]
[385934635,1758137464146,-400.0,0.00022821,2]
[385934636,1758137464156,-400.0,0.00022821,2]
[385934637,1758137464167,-488.87958804,0.00022821,2]
[385934638,1758137464176,-400.0,0.00022821,2]
[385934639,1758137464189,-400.0,0.00022821,2]
[385934640,1758137464199,-400.0,0.00022821,2]
[385934641,1758137464209,-400.0,0.00022821,2]
[385934642,1758137464220,-297.9751853,0.00022821,2]
[385934643,1758137464230,-400.0,0.00022821,2]
[385934644,1758137464241,-400.0,0.00022821,2]
[385934645,1758137464250,-156.62517896,0.00022821,2]
[385934646,1758137464260,-422.78,0.00022821,2]
[385934647,1758137464270,-400.0,0.00022821,2]
[385934648,1758137464280,-711.68,0.00022821,2]
[385934649,1758137464289,-501.32,0.00022821,2]
[385934650,1758137464300,-400.0,0.00022821,2]
[385934651,1758137464309,-400.0,0.00022821,2]
[385934652,1758137464319,-400.0,0.00022821,2]
[385934653,1758137464329,-400.0,0.00022821,2]
[385934654,1758137464338,-394.36929794,0.00022821,2]
[385934655,1758137464348,-400.0,0.00022821,2]
[385934656,1758137464357,-400.0,0.00022821,2]
[385934657,1758137464367,-400.0,0.00022821,2]
[385934658,1758137464377,-437.82,0.00022821,2]
[385934659,1758137464386,-400.0,0.00022821,2]
[385934660,1758137464396,-400.0,0.00022821,2]
[385934661,1758137464405,-400.0,0.00022821,2]
[385934662,1758137464415,-400.0,0.00022821,2]
[385934663,1758137464425,-400.0,0.00022821,2]
[385934664,1758137464434,-400.0,0.00022821,2]
[385934665,1758137464445,-514.55533015,0.00022821,2]
[385934666,1758137464454,-400.0,0.00022821,2]
[385934667,1758137464463,-361.27572911,0.00022821,2]
[385934668,1758137464473,-400.0,0.00022821,2]
[385934669,1758137464482,-400.0,0.00022821,2]
[385934670,1758137464492,-468.8,0.00022821,2]
[385934671,1758137464502,-400.0,0.00022821,2]
[385934672,1758137464511,-939.92,0.00022821,2]
[385934673,1758137464521,-400.0,0.00022821,2]
[385934674,1758137464530,-462.35,0.00022821,2]
[385934675,1758137464540,-1108.83,0.00022821,2]
[385934676,1758137464549,-587.56,0.00022821,2]
[385934677,1758137464559,-820.14,0.00022821,2]
[385934678,1758137464569,-1781.73,0.00022821,2]
[385934679,1758137464578,-564.62,0.00022821,2]
[385934680,1758137464587,-400.0,0.00022821,2]
[385934681,1758137464596,-400.0,0.00022821,2]
[385934682,1758137464606,-454.8,0.00022821,2]
[385934683,1758137464616,-400.0,0.00022821,2]
[385934684,1758137464625,-419.62,0.00022821,2]
[385934685,1758137464635,-400.0,0.00022821,2]
[385934686,1758137464644,-514.56,0.00022821,2]
[385934687,1758137464655,-471.22,0.00022821,2]
[385934688,1758137464664,-443.87,0.00022821,2]
[385934689,1758137464673,-719.15,0.00022821,2]
[385934690,1758137464683,-546.46,0.00022821,2]
[385934691,1758137464694,-411.01,0.00022821,2]
[385934692,1758137464704,-400.0,0.00022821,2]
[385934693,1758137464713,-769.33,0.00022821,2]
[385934694,1758137464723,-450.77,0.00022821,2]
[385934695,1758137464732,-1734.54,0.00022821,2]
[385934696,1758137464742,-400.0,0.00022821,2]
[385934697,1758137464751,-1923.29,0.00022821,2]
[385934698,1758137464761,-400.0,0.00022821,2]
[385934699,1758137464770,-411.58,0.00022821,2]
[385934700,1758137464780,-431.89,0.00022821,2]
[385934701,1758137464789,-733.95,0.00022821,2]
[385934702,1758137464799,-400.0,0.00022821,2]
[385934703,1758137464809,-3546.51,0.00022821,2]
[385934704,1758137464820,-935.65,0.00022821,2]
[385934705,1758137464832,-957.93,0.00022821,2]
[385934706,1758137464842,-400.0,0.00022821,2]
[385934707,1758137464852,-405.32,0.00022821,2]
[385934708,1758137464863,-489.76,0.00022821,2]
[385934709,1758137464874,-535.24,0.00022821,2]
[385934710,1758137464884,-400.0,0.00022821,2]
[385934711,1758137464895,-491.18,0.00022821,2]
[385934712,1758137464906,-780.29,0.00022821,2]
[385934713,1758137464916,-400.0,0.00022821,2]
[385934714,1758137464926,-647.97,0.00022821,2]
[385934715,1758137464936,-1559.37,0.00022821,2]
[385934716,1758137464949,-769.68,0.00022821,2]
[385934717,1758137464960,-737.61,0.00022821,2]
[385934718,1758137464969,-609.45040753,0.00022821,2]
[385934719,1758137464978,-568.29,0.00022821,2]
[385934720,1758137464988,-976.6,0.00022821,2]
[385934721,1758137464997,-777.44,0.00022821,2]
[385934722,1758137465007,-876.26,0.00022821,2]
[385934723,1758137465016,-513.48,0.00022821,2]
[385934724,1758137465025,-680.77,0.00022821,2]
[385934725,1758137465035,-492.09,0.00022821,2]
[385934726,1758137465045,-883.58,0.00022821,2]
[385934727,1758137465054,-400.0,0.00022821,2]
[385934728,1758137465064,-400.0,0.00022821,2]
[385934729,1758137465074,-512.24,0.00022821,2]
[385934730,1758137465084,-400.0,0.00022821,2]
[385934731,1758137465093,-3218.82,0.00022821,2]
[385934732,1758137465103,-191.0,0.00022885,2]
[385934733,1758137465112,-2500.0,0.000229,8]
[385934734,1758137465122,-379.48272619,0.00022913,2]
[385934735,1758137465132,-400.0,0.00022993,2]
[385934736,1758137465142,-400.0,0.00022994,2]
[385934737,1758137465152,-400.0,0.00022994,2]
[385934738,1758137465162,-400.0,0.00022994,2]
[385934739,1758137465171,-400.0,0.00022994,2]
[385934740,1758137465181,-400.0,0.00022994,2]
[385934741,1758137465194,-400.0,0.00022994,2]
[385934742,1758137465204,-488.59,0.00022994,2]
[385934743,1758137465214,-400.0,0.00022994,2]
[385934744,1758137465224,-400.0,0.00022994,2]
[385934745,1758137465233,-400.0,0.00022994,2]
[385934746,1758137465243,-400.0,0.00022994,2]
[385934747,1758137465252,-435.76,0.00022994,2]
[385934748,1758137465261,-400.0,0.00022994,2]
[385934749,1758137465271,-400.0,0.00022994,2]
[385934750,1758137465280,-400.0,0.00022994,2]
[385934751,1758137465289,-400.0,0.00022994,2]
[385934752,1758137465299,-400.0,0.00022994,2]
[385934753,1758137465309,-400.0,0.00022994,2]
[385934754,1758137465318,-400.0,0.00022994,2]
[385934755,1758137465328,-400.0,0.00022994,2]
[385934756,1758137465338,-400.0,0.00022994,2]
[385934757,1758137465408,-400.0,0.00022994,2]
[385934758,1758137465418,-415.91,0.00022994,2]
[385934759,1758137465428,-400.0,0.00022994,2]
[385934760,1758137465438,-246.81077448,0.00022994,2]
[385934761,1758137465447,-400.0,0.00022994,2]
[385934762,1758137465457,-400.0,0.00022994,2]
[385934763,1758137465467,-400.0,0.00022994,2]
[385934764,1758137465476,-400.0,0.00022994,2]
[385934765,1758137465485,-400.0,0.00022994,2]
[385934766,1758137465495,-400.0,0.00022994,2]
[385934767,1758137465504,-400.0,0.00022994,2]
[385934768,1758137465513,-400.0,0.00022994,2]
[385934769,1758137465523,-400.0,0.00022994,2]
[385934770,1758137465532,-400.0,0.00022994,2]
[385934771,1758137465542,-400.0,0.00022994,2]
[385934772,1758137465551,-400.0,0.00022994,2]
[385934773,1758137465561,-400.0,0.00022994,2]
[385934774,1758137465570,-400.0,0.00022994,2]
[385934775,1758137465579,-400.0,0.00022994,2]
[385934776,1758137465588,-400.0,0.00022994,2]
[385934777,1758137465598,-612.38,0.00022994,2]
[385934778,1758137465607,-400.0,0.00022994,2]
[385934779,1758137465616,-431.7,0.00022994,2]
[385934780,1758137465625,-400.0,0.00022994,2]
[385934781,1758137465634,-430.28,0.00022994,2]
[385934782,1758137465644,-400.0,0.00022994,2]
[385934783,1758137465654,-400.0,0.00022994,2]
[385934784,1758137465664,-400.0,0.00022994,2]
[385934785,1758137465673,-400.0,0.00022994,2]
[385934786,1758137465682,-400.0,0.00022994,2]
[385934787,1758137465693,-400.0,0.00022994,2]
[385934788,1758137465702,-400.0,0.00022994,2]
[385934789,1758137465712,-400.0,0.00022994,2]
[385934790,1758137465721,-400.0,0.00022994,2]
[385934791,1758137465731,-400.0,0.00022994,2]
[385934792,1758137465740,-400.0,0.00022994,2]
[385934793,1758137465749,-400.0,0.00022994,2]
[385934794,1758137465759,-400.0,0.00022994,2]
[385934795,1758137465768,-441.41,0.00022994,2]
[385934796,1758137465777,-691.27,0.00022994,2]
[385934797,1758137465786,-708.66,0.00022994,2]
[385934798,1758137465796,-400.0,0.00022994,2]
[385934799,1758137465805,-652.09,0.00022994,2]
[385934800,1758137465814,-568.38,0.00022994,2]
[385934801,1758137465828,-400.0,0.00022994,2]
[385934802,1758137465837,-400.0,0.00022994,2]
[385934803,1758137465846,-421.69,0.00022994,2]
[385934804,1758137465856,-400.0,0.00022994,2]
[385934805,1758137465866,-400.0,0.00022994,2]
[385934806,1758137465875,-400.0,0.00022994,2]
[385934807,1758137465886,-400.0,0.00022994,2]
[385934808,1758137465896,-400.0,0.00022994,2]
[385934809,1758137465905,-400.0,0.00022994,2]
[385934810,1758137465915,-1074.46,0.00022994,2]
[385934811,1758137465924,-400.0,0.00022994,2]
[385934812,1758137465933,-418.61,0.00022994,2]
[385934813,1758137465944,-400.0,0.00022994,2]
[385934814,1758137465953,-868.64,0.00022994,2]
[385934815,1758137465962,-400.0,0.00022994,2]
[385934816,1758137465972,-400.0,0.00022994,2]
[385934817,1758137465982,-433.88,0.00022994,2]
[385934818,1758137465992,-467.4,0.00022994,2]
[385934819,1758137466001,-400.0,0.00022994,2]
[385934820,1758137466011,-400.0,0.00022994,2]
[385934821,1758137466020,-1017.1,0.00022994,2]
[385934822,1758137466030,-613.41,0.00022994,2]
[385934823,1758137466039,-400.0,0.00022994,2]
[385934824,1758137466050,-1761.46,0.00022994,2]
[385934825,1758137466059,-480.39,0.00022994,2]
[385934826,1758137466070,-400.0,0.00022994,2]
[385934827,1758137466080,-400.0,0.00022994,2]
[385934828,1758137466089,-400.0,0.00022994,2]
[385934829,1758137466099,-400.0,0.00022994,2]
[385934830,1758137466109,-1821.95,0.00022994,2]
[385934831,1758137466120,-400.0,0.00022994,2]
[385934832,1758137466129,-293.88054815,0.00023012,2]
[385934833,1758137466139,-400.0,0.00023012,2]
[385934834,1758137466149,-411.50239026,0.00023012,2]
[385934835,1758137466158,-400.0,0.00023012,2]
[385934836,1758137466168,-400.0,0.00023012,2]
[385934837,1758137466177,-400.0,0.00023012,2]
[385934838,1758137466187,-500.29109963,0.00023012,2]
[385934839,1758137466203,-400.0,0.00023012,2]
[385934840,1758137466212,-400.0,0.00023012,2]
[385934841,1758137466221,-400.0,0.00023012,2]
[385934842,1758137466230,-218.4390997,0.00023012,2]
[385934843,1758137466239,-400.0,0.00023012,2]
[385934844,1758137466248,-400.0,0.00023012,2]
[385934845,1758137466257,-400.0,0.00023012,2]
[385934846,1758137466267,-400.0,0.00023012,2]
[385934847,1758137466276,-400.0,0.00023012,2]
[385934848,1758137466285,-163.97274896,0.00023012,2]
[385934849,1758137466294,-525.18423798,0.00023012,2]
[385934850,1758137466304,-400.0,0.00023012,2]
[385934851,1758137466313,-400.0,0.00023012,2]
[385934852,1758137466322,-400.0,0.00023012,2]
[385934853,1758137466331,-400.0,0.00023012,2]
[385934854,1758137466340,-400.0,0.00023012,2]
[385934855,1758137466349,-400.0,0.00023012,2]
[385934856,1758137466358,-400.0,0.00023012,2]
[385934857,1758137466368,-400.0,0.00023012,2]
[385934858,1758137466377,-459.42903818,0.00023012,2]
[385934859,1758137466386,-400.0,0.00023012,2]
[385934860,1758137466395,-400.0,0.00023012,2]
[385934861,1758137466404,-350.05314157,0.00023012,2]
[385934862,1758137466413,-400.0,0.00023012,2]
[385934863,1758137466422,-400.0,0.00023012,2]
[385934864,1758137466432,-400.0,0.00023012,2]
[385934865,1758137466442,-400.0,0.00023012,2]
[385934866,1758137466452,-400.0,0.00023012,2]
[385934867,1758137466461,-400.0,0.00023012,2]
[385934868,1758137466470,-506.83,0.00023012,2]
[385934869,1758137466480,-400.0,0.00023012,2]
[385934870,1758137466489,-400.0,0.00023012,2]
[385934871,1758137466499,-400.0,0.00023012,2]
[385934872,1758137466508,-400.0,0.00023012,2]
[385934873,1758137466517,-400.0,0.00023012,2]
[385934874,1758137466527,-400.0,0.00023012,2]
[385934875,1758137466536,-400.0,0.00023012,2]
[385934876,1758137466545,-462.58888493,0.00023012,2]
[385934877,1758137466554,-400.0,0.00023012,2]
[385934878,1758137466562,-400.0,0.00023012,2]
[385934879,1758137466571,-400.0,0.00023012,2]
[385934880,1758137466580,-400.0,0.00023012,2]
[385934881,1758137466590,-400.0,0.00023012,2]
[385934882,1758137466599,-400.0,0.00023012,2]
[385934883,1758137466608,-400.0,0.00023012,2]
[385934884,1758137466617,-400.0,0.00023012,2]
[385934885,1758137466626,-400.0,0.00023012,2]
[385934886,1758137466635,-400.0,0.00023012,2]
[385934887,1758137466645,-479.084334,0.00023012,2]
[385934888,1758137466654,-400.0,0.00023012,2]
[385934889,1758137466663,-400.0,0.00023012,2]
[385934890,1758137466672,-400.0,0.00023012,2]
[385934891,1758137466681,-400.0,0.00023012,2]
[385934892,1758137466693,-400.0,0.00023012,2]
[385934893,1758137466702,-196.78338206,0.00023012,2]
[385934894,1758137466711,-400.0,0.00023012,2]
[385934895,1758137466720,-400.0,0.00023012,2]
[385934896,1758137466729,-400.0,0.00023012,2]
[385934897,1758137466738,-400.0,0.00023012,2]
[385934898,1758137466747,-400.0,0.00023012,2]
[385934899,1758137466756,-400.0,0.00023012,2]
[385934900,1758137466765,-400.0,0.00023012,2]
[385934901,1758137466774,-400.0,0.00023012,2]
[385934902,1758137466783,-400.0,0.00023012,2]
[385934903,1758137466792,-234.14646947,0.00023012,2]
[385934904,1758137466802,-400.0,0.00023012,2]
[385934905,1758137466811,-400.0,0.00023012,2]
[385934906,1758137466823,-400.0,0.00023012,2]
[385934907,1758137466832,-400.0,0.00023012,2]
[385934908,1758137466841,-400.0,0.00023012,2]
[385934909,1758137466850,-400.0,0.00023012,2]
[385934910,1758137466860,-400.0,0.00023012,2]
[385934911,1758137466870,-400.0,0.00023012,2]
[385934912,1758137466879,-400.0,0.00023012,2]
[385934913,1758137466890,-400.0,0.00023012,2]
[385934914,1758137466902,-497.81791577,0.00023012,2]
[385934915,1758137466913,-400.0,0.00023012,2]
[385934916,1758137466923,-400.0,0.00023012,2]
[385934917,1758137466933,-400.0,0.00023012,2]
[385934918,1758137466948,-400.0,0.00023012,2]
[385934919,1758137466957,-400.0,0.00023012,2]
[385934920,1758137466967,-400.0,0.00023012,2]
[385934921,1758137466976,-400.0,0.00023012,2]